[Event "*** Titled Tuesday Blitz"]
[Site "Chess.com"]
[Date "2020.11.10"]
[Round "11"]
[White "zverr1"]
[Black "klimkoj"]
[Result "1/2-1/2"]
[WhiteElo "2448"]
[BlackElo "2622"]
[TimeControl "180+1"]
[EndTime "12:13:44 PST"]
[Termination "Game drawn by repetition"]

1. e4 {[%clk 0:03:00.9]} 1... c5 {[%clk 0:02:59.8]} 2. Nf3 {[%clk 0:02:59.3]}
2... d6 {[%clk 0:02:59.6]} 3. d4 {[%clk 0:02:59.2]} 3... cxd4 {[%clk 0:03:00.5]}
4. Nxd4 {[%clk 0:02:59.8]} 4... Nf6 {[%clk 0:03:00.3]} 5. Nc3 {[%clk 0:03:00.1]}
5... a6 {[%clk 0:03:00.6]} 6. h3 {[%clk 0:03:00.3]} 6... e5 {[%clk 0:02:59.9]}
7. Nde2 {[%clk 0:02:59.3]} 7... b5 {[%clk 0:03:00.3]} 8. g4 {[%clk 0:02:58.7]}
8... b4 {[%clk 0:03:00.6]} 9. Nd5 {[%clk 0:02:57.8]} 9... Nxd5 {[%clk
0:03:01.1]} 10. exd5 {[%clk 0:02:55.8]} 10... h5 {[%clk 0:03:00.2]} 11. gxh5
{[%clk 0:02:40.2]} 11... Rxh5 {[%clk 0:03:01.1]} 12. Ng3 {[%clk 0:02:37.4]}
12... Rh4 {[%clk 0:02:58.7]} 13. Be3 {[%clk 0:02:30.3]} 13... Nd7 {[%clk
0:02:49.6]} 14. Nf5 {[%clk 0:02:22.4]} 14... Rh8 {[%clk 0:02:48]} 15. Bg2 {[%clk
0:01:59.8]} 15... g6 {[%clk 0:02:43.8]} 16. Ng3 {[%clk 0:01:54.9]} 16... Bg7
{[%clk 0:02:41.1]} 17. Ne4 {[%clk 0:01:50.5]} 17... Qc7 {[%clk 0:02:38.6]} 18.
Qd2 {[%clk 0:01:39.9]} 18... a5 {[%clk 0:02:22.5]} 19. O-O {[%clk 0:01:27]}
19... Nf6 {[%clk 0:02:16.1]} 20. f4 {[%clk 0:01:20.2]} 20... Nxe4 {[%clk
0:02:13.4]} 21. Bxe4 {[%clk 0:01:20.9]} 21... Bxh3 {[%clk 0:02:13.6]} 22. f5
{[%clk 0:01:17.6]} 22... Bxf1 {[%clk 0:01:57.7]} 23. Rxf1 {[%clk 0:01:18.5]}
23... Qe7 {[%clk 0:01:40.6]} 24. Bg5 {[%clk 0:01:12.8]} 24... Bf6 {[%clk
0:01:40.7]} 25. Be3 {[%clk 0:01:00.7]} 25... gxf5 {[%clk 0:01:27]} 26. Bxf5
{[%clk 0:00:56]} 26... Qf8 {[%clk 0:01:26.2]} 27. Rf2 {[%clk 0:00:48.9]} 27...
Bh4 {[%clk 0:01:14.7]} 28. Rg2 {[%clk 0:00:45.9]} 28... Rg8 {[%clk 0:01:06.5]}
29. Qd3 {[%clk 0:00:44.5]} 29... Rxg2+ {[%clk 0:01:05.8]} 30. Kxg2 {[%clk
0:00:45.4]} 30... Qg7+ {[%clk 0:01:03.5]} 31. Kf1 {[%clk 0:00:45.5]} 31... Qg3
{[%clk 0:01:00.4]} 32. Qe4 {[%clk 0:00:19.8]} 32... Qe1+ {[%clk 0:00:55.8]} 33.
Kg2 {[%clk 0:00:19.9]} 33... Ke7 {[%clk 0:00:56]} 34. Bg5+ {[%clk 0:00:17.6]}
34... Kf8 {[%clk 0:00:46.7]} 35. Qxh4 {[%clk 0:00:16.6]} 35... Qxh4 {[%clk
0:00:41.1]} 36. Bxh4 {[%clk 0:00:17.5]} 36... Ra7 {[%clk 0:00:41.1]} 37. Bf6
{[%clk 0:00:15.9]} 37... Rc7 {[%clk 0:00:40.2]} 38. Kf3 {[%clk 0:00:07.8]} 38...
Rc4 {[%clk 0:00:40.4]} 39. Be4 {[%clk 0:00:06.2]} 39... a4 {[%clk 0:00:40.1]}
40. b3 {[%clk 0:00:04.8]} 40... axb3 {[%clk 0:00:30.8]} 41. axb3 {[%clk
0:00:05.7]} 41... Rd4 {[%clk 0:00:25.6]} 42. Bg5 {[%clk 0:00:05]} 42... f5
{[%clk 0:00:25]} 43. Bxf5 {[%clk 0:00:04.1]} 43... Rxd5 {[%clk 0:00:24.3]} 44.
Be4 {[%clk 0:00:03.8]} 44... Rd1 {[%clk 0:00:24.3]} 45. Bh6+ {[%clk 0:00:04]}
45... Ke7 {[%clk 0:00:24.1]} 46. Be3 {[%clk 0:00:04.9]} 46... Ra1 {[%clk
0:00:21.8]} 47. Ke2 {[%clk 0:00:04.3]} 47... Ke6 {[%clk 0:00:21.9]} 48. Bd3
{[%clk 0:00:04.2]} 48... d5 {[%clk 0:00:21.7]} 49. Bd2 {[%clk 0:00:04.6]} 49...
e4 {[%clk 0:00:21.4]} 50. Bb5 {[%clk 0:00:04]} 50... Ra2 {[%clk 0:00:21.6]} 51.
Kd1 {[%clk 0:00:02.7]} 51... Ra1+ {[%clk 0:00:21.5]} 52. Ke2 {[%clk 0:00:03]}
52... Ra2 {[%clk 0:00:21.3]} 53. Kd1 {[%clk 0:00:03]} 53... Ra1+ {[%clk
0:00:20.7]} 54. Ke2 {[%clk 0:00:03.4]} 1/2-1/2

[Event "*** Titled Tuesday Blitz"]
[Site "Chess.com"]
[Date "2020.11.10"]
[Round "11"]
[White "Nara_Kh"]
[Black "Gerodot71"]
[Result "0-1"]
[WhiteElo "2365"]
[BlackElo "2488"]
[TimeControl "180+1"]
[EndTime "12:13:48 PST"]
[Termination "Gerodot71 won by resignation"]

1. e4 {[%clk 0:03:00.9]} 1... e5 {[%clk 0:03:00.2]} 2. Nf3 {[%clk 0:03:00.4]}
2... Nc6 {[%clk 0:03:00.8]} 3. Bb5 {[%clk 0:03:00.2]} 3... a6 {[%clk 0:03:01]}
4. Ba4 {[%clk 0:03:00.5]} 4... Nf6 {[%clk 0:03:00.6]} 5. O-O {[%clk 0:02:59.8]}
5... Be7 {[%clk 0:03:01.1]} 6. d3 {[%clk 0:02:59.9]} 6... b5 {[%clk 0:03:00.3]}
7. Bb3 {[%clk 0:02:59.7]} 7... d6 {[%clk 0:03:01]} 8. a4 {[%clk 0:02:55.2]} 8...
Rb8 {[%clk 0:03:00.4]} 9. h3 {[%clk 0:02:54.7]} 9... O-O {[%clk 0:02:59.9]} 10.
c3 {[%clk 0:02:52.8]} 10... Be6 {[%clk 0:02:59.5]} 11. Bc2 {[%clk 0:02:52.3]}
11... h6 {[%clk 0:02:56]} 12. d4 {[%clk 0:02:42.2]} 12... exd4 {[%clk
0:02:18.1]} 13. cxd4 {[%clk 0:02:40.3]} 13... Nb4 {[%clk 0:02:18.7]} 14. d5
{[%clk 0:02:38.2]} 14... Nxc2 {[%clk 0:02:17.3]} 15. Qxc2 {[%clk 0:02:38.4]}
15... Bd7 {[%clk 0:02:17.2]} 16. Nc3 {[%clk 0:02:35.3]} 16... Re8 {[%clk
0:02:12.9]} 17. Nd4 {[%clk 0:02:30]} 17... Bf8 {[%clk 0:02:09.3]} 18. Re1 {[%clk
0:02:25.4]} 18... b4 {[%clk 0:02:05.5]} 19. Nd1 {[%clk 0:02:01.6]} 19... Nxd5
{[%clk 0:02:00.2]} 20. Nc6 {[%clk 0:01:57.8]} 20... Bxc6 {[%clk 0:01:58.7]} 21.
Qxc6 {[%clk 0:01:57.5]} 21... Nb6 {[%clk 0:01:54.1]} 22. a5 {[%clk 0:01:55.4]}
22... Nc8 {[%clk 0:01:46.5]} 23. Qxa6 {[%clk 0:01:52.8]} 23... d5 {[%clk
0:01:41]} 24. e5 {[%clk 0:01:45.7]} 24... Re6 {[%clk 0:01:33.7]} 25. Qd3 {[%clk
0:01:41.5]} 25... c5 {[%clk 0:01:33.4]} 26. b3 {[%clk 0:01:41]} 26... Ne7 {[%clk
0:01:29.7]} 27. Bb2 {[%clk 0:01:39.8]} 27... Nc6 {[%clk 0:01:28.9]} 28. f4
{[%clk 0:01:39.9]} 28... Nxa5 {[%clk 0:01:27.6]} 29. f5 {[%clk 0:01:40]} 29...
Re8 {[%clk 0:01:26.3]} 30. Ne3 {[%clk 0:01:29.6]} 30... c4 {[%clk 0:01:11.5]}
31. bxc4 {[%clk 0:01:15.1]} 31... Nxc4 {[%clk 0:01:12.4]} 32. Nxc4 {[%clk
0:01:14.5]} 32... dxc4 {[%clk 0:01:11.9]} 33. Qxc4 {[%clk 0:01:14.1]} 33... Qb6+
{[%clk 0:01:11.8]} 34. Bd4 {[%clk 0:01:06.6]} 34... Qb5 {[%clk 0:01:01.5]} 35.
Rec1 {[%clk 0:00:45]} 35... b3 {[%clk 0:00:55.6]} 36. Rab1 {[%clk 0:00:32.4]}
36... Red8 {[%clk 0:00:43.7]} 37. Kh1 {[%clk 0:00:23.8]} 37... Qd7 {[%clk
0:00:29.9]} 38. Bb2 {[%clk 0:00:20.6]} 38... Qxf5 {[%clk 0:00:28.1]} 39. Rf1
{[%clk 0:00:19.3]} 39... Qe6 {[%clk 0:00:28.3]} 40. Qf4 {[%clk 0:00:19.2]} 40...
Be7 {[%clk 0:00:26.4]} 41. Qg3 {[%clk 0:00:18.5]} 41... Rd2 {[%clk 0:00:22]} 42.
Rf2 {[%clk 0:00:18.1]} 42... Rc2 {[%clk 0:00:18.8]} 43. Rbf1 {[%clk 0:00:17.3]}
43... Rxf2 {[%clk 0:00:15.5]} 44. Qxf2 {[%clk 0:00:16.9]} 44... Rc8 {[%clk
0:00:15.9]} 45. Qe3 {[%clk 0:00:15.1]} 45... Rc2 {[%clk 0:00:14.5]} 46. Rf2
{[%clk 0:00:15.3]} 46... Bc5 {[%clk 0:00:13.1]} 47. Rxc2 {[%clk 0:00:06.8]}
47... Bxe3 {[%clk 0:00:13.1]} 48. Re2 {[%clk 0:00:06]} 48... Bc5 {[%clk
0:00:11.6]} 49. Re4 {[%clk 0:00:06.3]} 49... Qd5 {[%clk 0:00:11.6]} 50. Re2
{[%clk 0:00:05.4]} 50... Qc4 {[%clk 0:00:10.3]} 51. Rd2 {[%clk 0:00:05.1]} 51...
Be3 {[%clk 0:00:10.5]} 52. Rd8+ {[%clk 0:00:04.5]} 52... Kh7 {[%clk 0:00:10.7]}
53. Rd7 {[%clk 0:00:05]} 53... Bc1 {[%clk 0:00:10.5]} 54. Bxc1 {[%clk 0:00:04]}
54... Qxc1+ {[%clk 0:00:11.4]} 55. Kh2 {[%clk 0:00:04.9]} 55... b2 {[%clk
0:00:11.9]} 0-1

[Event "*** Titled Tuesday Blitz"]
[Site "Chess.com"]
[Date "2020.11.10"]
[Round "11"]
[White "VladaSviridova"]
[Black "atalz0"]
[Result "1-0"]
[WhiteElo "2270"]
[BlackElo "2392"]
[TimeControl "180+1"]
[EndTime "12:13:51 PST"]
[Termination "VladaSviridova won on time"]

1. d4 {[%clk 0:03:00.9]} 1... Nf6 {[%clk 0:02:59.3]} 2. c4 {[%clk 0:03:01]} 2...
e6 {[%clk 0:02:50.3]} 3. Nf3 {[%clk 0:03:00.9]} 3... d5 {[%clk 0:02:46.5]} 4.
Nc3 {[%clk 0:03:00.7]} 4... c5 {[%clk 0:02:44.7]} 5. cxd5 {[%clk 0:03:00.4]}
5... Nxd5 {[%clk 0:02:45.6]} 6. e4 {[%clk 0:03:00.4]} 6... Nxc3 {[%clk
0:02:46.2]} 7. bxc3 {[%clk 0:03:00.8]} 7... cxd4 {[%clk 0:02:46.9]} 8. cxd4
{[%clk 0:03:01.4]} 8... Bb4+ {[%clk 0:02:47.1]} 9. Bd2 {[%clk 0:03:02]} 9...
Bxd2+ {[%clk 0:02:47.6]} 10. Qxd2 {[%clk 0:03:00.8]} 10... O-O {[%clk
0:02:47.8]} 11. Rc1 {[%clk 0:02:57.3]} 11... b6 {[%clk 0:02:47.5]} 12. Bd3
{[%clk 0:02:51.4]} 12... Bb7 {[%clk 0:02:46.4]} 13. O-O {[%clk 0:02:51]} 13...
Nd7 {[%clk 0:02:42.3]} 14. Qe3 {[%clk 0:02:47.7]} 14... h6 {[%clk 0:02:38.5]}
15. h3 {[%clk 0:02:46]} 15... Rc8 {[%clk 0:02:34.8]} 16. e5 {[%clk 0:02:37]}
16... Re8 {[%clk 0:02:08.3]} 17. Nd2 {[%clk 0:02:16.8]} 17... Qh4 {[%clk
0:01:55.3]} 18. Be4 {[%clk 0:02:07.6]} 18... Bd5 {[%clk 0:01:47.9]} 19. Bxd5
{[%clk 0:01:52.8]} 19... exd5 {[%clk 0:01:48.8]} 20. Nf3 {[%clk 0:01:52.7]}
20... Qh5 {[%clk 0:01:19.9]} 21. Rxc8 {[%clk 0:01:45.3]} 21... Rxc8 {[%clk
0:01:20.8]} 22. Rc1 {[%clk 0:01:45.8]} 22... Rxc1+ {[%clk 0:01:04.1]} 23. Qxc1
{[%clk 0:01:44.7]} 23... Qf5 {[%clk 0:01:04.8]} 24. Qc6 {[%clk 0:01:37.6]} 24...
Qe6 {[%clk 0:00:50.8]} 25. Qc7 {[%clk 0:01:26.6]} 25... a5 {[%clk 0:00:44.2]}
26. a4 {[%clk 0:01:24.7]} 26... Nf8 {[%clk 0:00:40.2]} 27. Ne1 {[%clk
0:01:03.2]} 27... Ng6 {[%clk 0:00:34.6]} 28. Kh2 {[%clk 0:00:34.2]} 28... Nf4
{[%clk 0:00:32.5]} 29. Nc2 {[%clk 0:00:28.4]} 29... h5 {[%clk 0:00:17.8]} 30.
Ne3 {[%clk 0:00:27.7]} 30... h4 {[%clk 0:00:17.6]} 31. Qd8+ {[%clk 0:00:20.2]}
31... Kh7 {[%clk 0:00:17]} 32. Qxh4+ {[%clk 0:00:19.9]} 32... Qh6 {[%clk
0:00:16.9]} 33. Qxh6+ {[%clk 0:00:18.9]} 33... Kxh6 {[%clk 0:00:17.4]} 34. g3
{[%clk 0:00:18.2]} 34... Ne6 {[%clk 0:00:15]} 35. Nxd5 {[%clk 0:00:18.2]} 35...
Nxd4 {[%clk 0:00:15.3]} 36. Nxb6 {[%clk 0:00:18.8]} 36... Nf3+ {[%clk
0:00:15.7]} 37. Kg2 {[%clk 0:00:18.1]} 37... Nxe5 {[%clk 0:00:16.6]} 38. f4
{[%clk 0:00:16.8]} 38... Nd3 {[%clk 0:00:13]} 39. Kf3 {[%clk 0:00:16.3]} 39...
f5 {[%clk 0:00:10.9]} 40. g4 {[%clk 0:00:16.1]} 40... fxg4+ {[%clk 0:00:10.7]}
41. hxg4 {[%clk 0:00:16.3]} 41... Kg6 {[%clk 0:00:11.2]} 42. f5+ {[%clk
0:00:15.8]} 42... Kg5 {[%clk 0:00:10.5]} 43. Nc4 {[%clk 0:00:14.9]} 43... Nc5
{[%clk 0:00:10.1]} 44. Nxa5 {[%clk 0:00:15]} 44... Nxa4 {[%clk 0:00:10.5]} 45.
Nc6 {[%clk 0:00:14.8]} 45... Nc5 {[%clk 0:00:08.5]} 46. Nd4 {[%clk 0:00:14.3]}
46... Nd7 {[%clk 0:00:07.9]} 47. Nc6 {[%clk 0:00:12.9]} 47... Nf6 {[%clk
0:00:06.3]} 48. Ne5 {[%clk 0:00:11.3]} 48... Nd5 {[%clk 0:00:03.9]} 49. Kg3
{[%clk 0:00:10.8]} 49... Kf6 {[%clk 0:00:01.8]} 50. Nd7+ {[%clk 0:00:10.6]}
50... Kf7 {[%clk 0:00:02.1]} 51. Ne5+ {[%clk 0:00:10.3]} 51... Kf6 {[%clk
0:00:02]} 52. Nd3 {[%clk 0:00:10.2]} 52... Kf7 {[%clk 0:00:02.2]} 53. Kh4 {[%clk
0:00:09.9]} 53... Ne7 {[%clk 0:00:02.3]} 54. Kg5 {[%clk 0:00:09.3]} 54... Nd5
{[%clk 0:00:01.8]} 55. Ne5+ {[%clk 0:00:09.1]} 55... Kf8 {[%clk 0:00:01.1]} 56.
Kg6 {[%clk 0:00:08.3]} 56... Nf4+ {[%clk 0:00:01.4]} 57. Kh7 {[%clk 0:00:08.1]}
1-0

[Event "*** Titled Tuesday Blitz"]
[Site "Chess.com"]
[Date "2020.11.10"]
[Round "11"]
[White "GregShahade"]
[Black "AlexeiShirov"]
[Result "1-0"]
[WhiteElo "2721"]
[BlackElo "2808"]
[TimeControl "180+1"]
[EndTime "12:13:58 PST"]
[Termination "GregShahade won on time"]

1. e4 {[%clk 0:03:00.9]} 1... e5 {[%clk 0:02:59.9]} 2. Nf3 {[%clk 0:03:01.2]}
2... Nc6 {[%clk 0:02:59.9]} 3. Bb5 {[%clk 0:03:01.7]} 3... a6 {[%clk 0:02:59.6]}
4. Ba4 {[%clk 0:03:02.1]} 4... Nf6 {[%clk 0:02:59.6]} 5. O-O {[%clk 0:03:02.4]}
5... Be7 {[%clk 0:02:58]} 6. Re1 {[%clk 0:03:02.3]} 6... b5 {[%clk 0:02:57.3]}
7. Bb3 {[%clk 0:03:02.7]} 7... d6 {[%clk 0:02:56.2]} 8. c3 {[%clk 0:03:02.7]}
8... O-O {[%clk 0:02:54.6]} 9. h3 {[%clk 0:03:03.1]} 9... Nb8 {[%clk 0:02:54.5]}
10. d4 {[%clk 0:03:03.2]} 10... Nbd7 {[%clk 0:02:54.3]} 11. Nbd2 {[%clk
0:03:02.2]} 11... Re8 {[%clk 0:02:48.6]} 12. Bxf7+ {[%clk 0:02:55.4]} 12... Kxf7
{[%clk 0:02:47.4]} 13. Ng5+ {[%clk 0:02:55.7]} 13... Kg8 {[%clk 0:02:36.7]} 14.
Ne6 {[%clk 0:02:45.5]} 14... Nf8 {[%clk 0:02:36.1]} 15. Nxd8 {[%clk 0:02:45.4]}
15... Bxd8 {[%clk 0:02:36]} 16. a4 {[%clk 0:02:41.9]} 16... c6 {[%clk
0:02:33.7]} 17. d5 {[%clk 0:02:16.7]} 17... cxd5 {[%clk 0:02:32]} 18. axb5
{[%clk 0:02:14.4]} 18... Ne6 {[%clk 0:02:26.6]} 19. exd5 {[%clk 0:02:12.1]}
19... Nc7 {[%clk 0:02:25.7]} 20. bxa6 {[%clk 0:02:00.3]} 20... Bxa6 {[%clk
0:02:24.9]} 21. c4 {[%clk 0:01:52.5]} 21... Be7 {[%clk 0:02:18.2]} 22. b3 {[%clk
0:01:50]} 22... Reb8 {[%clk 0:02:15.8]} 23. Bb2 {[%clk 0:01:48.9]} 23... Bc8
{[%clk 0:02:15.5]} 24. Qc2 {[%clk 0:01:45.8]} 24... g6 {[%clk 0:02:11.5]} 25.
Rxa8 {[%clk 0:01:44.5]} 25... Rxa8 {[%clk 0:02:10.6]} 26. Ra1 {[%clk 0:01:44.6]}
26... Rb8 {[%clk 0:02:07.9]} 27. Ra7 {[%clk 0:01:43.5]} 27... Bd8 {[%clk
0:02:06.4]} 28. Ba3 {[%clk 0:01:38]} 28... Nce8 {[%clk 0:02:05.5]} 29. c5 {[%clk
0:01:10.3]} 29... Bf5 {[%clk 0:02:05]} 30. Qc4 {[%clk 0:01:05.4]} 30... Nc7
{[%clk 0:01:57.8]} 31. g4 {[%clk 0:00:57.3]} 31... Nb5 {[%clk 0:01:52.5]} 32.
gxf5 {[%clk 0:00:47.6]} 32... Nxa7 {[%clk 0:01:52]} 33. fxg6 {[%clk 0:00:47.9]}
33... hxg6 {[%clk 0:01:51]} 34. c6 {[%clk 0:00:44.5]} 34... Nb5 {[%clk
0:01:48.4]} 35. Bb2 {[%clk 0:00:40.5]} 35... Kf7 {[%clk 0:01:31.4]} 36. Ne4
{[%clk 0:00:38.1]} 36... Nxe4 {[%clk 0:01:26.7]} 37. Qxe4 {[%clk 0:00:39]} 37...
Nc7 {[%clk 0:01:26.5]} 38. Qf3+ {[%clk 0:00:39.3]} 38... Bf6 {[%clk 0:01:24.4]}
39. Ba3 {[%clk 0:00:32.5]} 39... Nb5 {[%clk 0:01:22.8]} 40. Bb2 {[%clk
0:00:30.9]} 40... Nc7 {[%clk 0:01:19.9]} 41. Bc1 {[%clk 0:00:29.9]} 41... Ke7
{[%clk 0:01:13.3]} 42. Bd2 {[%clk 0:00:25.7]} 42... Rb5 {[%clk 0:01:11.5]} 43.
Qe3 {[%clk 0:00:18.2]} 43... Rc5 {[%clk 0:00:54.2]} 44. Bb4 {[%clk 0:00:15.6]}
44... Nxd5 {[%clk 0:00:53]} 45. Qe4 {[%clk 0:00:10.3]} 45... Rc1+ {[%clk
0:00:48.2]} 46. Kh2 {[%clk 0:00:09.2]} 46... Nf4 {[%clk 0:00:45.6]} 47. Ba5
{[%clk 0:00:04.5]} 47... d5 {[%clk 0:00:40.5]} 48. Qb4+ {[%clk 0:00:04.1]} 48...
Ke6 {[%clk 0:00:39.8]} 49. Qb7 {[%clk 0:00:03.4]} 49... Kf5 {[%clk 0:00:19.7]}
50. Qd7+ {[%clk 0:00:03.5]} 50... Ke4 {[%clk 0:00:18.1]} 51. Bd2 {[%clk
0:00:03.1]} 51... Rc2 {[%clk 0:00:16.4]} 52. Bxf4 {[%clk 0:00:03.4]} 52... exf4
{[%clk 0:00:15.7]} 53. c7 {[%clk 0:00:03.2]} 53... Rxf2+ {[%clk 0:00:13.7]} 54.
Kh1 {[%clk 0:00:03.6]} 54... Bd4 {[%clk 0:00:11.5]} 55. Qe6+ {[%clk 0:00:03.6]}
55... Kd3 {[%clk 0:00:09.7]} 56. Qxg6+ {[%clk 0:00:04.2]} 56... Kd2 {[%clk
0:00:07.8]} 57. c8=Q {[%clk 0:00:04.9]} 57... Rf1+ {[%clk 0:00:05.5]} 58. Kh2
{[%clk 0:00:05.6]} 58... Rf2+ {[%clk 0:00:04.8]} 59. Qg2 {[%clk 0:00:05.9]}
59... f3 {[%clk 0:00:04.5]} 60. Qxf2+ {[%clk 0:00:05.8]} 60... Bxf2 {[%clk
0:00:04.4]} 61. Qf5 {[%clk 0:00:06.4]} 1-0

[Event "*** Titled Tuesday Blitz"]
[Site "Chess.com"]
[Date "2020.11.10"]
[Round "11"]
[White "Aygehovit1992"]
[Black "KuzubovYuriy"]
[Result "0-1"]
[WhiteElo "2679"]
[BlackElo "2838"]
[TimeControl "180+1"]
[EndTime "12:13:59 PST"]
[Termination "KuzubovYuriy won by resignation"]

1. e4 {[%clk 0:03:00.9]} 1... c5 {[%clk 0:03:00.3]} 2. Nf3 {[%clk 0:02:59.4]}
2... d6 {[%clk 0:03:00.9]} 3. d4 {[%clk 0:02:59.1]} 3... cxd4 {[%clk 0:03:01.8]}
4. Nxd4 {[%clk 0:03:00]} 4... Nf6 {[%clk 0:03:02]} 5. Nc3 {[%clk 0:03:00.6]}
5... a6 {[%clk 0:03:02.7]} 6. h3 {[%clk 0:03:01.1]} 6... e5 {[%clk 0:02:59.5]}
7. Nde2 {[%clk 0:02:59.9]} 7... Be6 {[%clk 0:02:59]} 8. Bg5 {[%clk 0:02:57]}
8... Nbd7 {[%clk 0:02:57]} 9. f4 {[%clk 0:02:42.7]} 9... h6 {[%clk 0:02:41.5]}
10. Bh4 {[%clk 0:02:41.9]} 10... Rc8 {[%clk 0:02:29.6]} 11. f5 {[%clk
0:02:41.7]} 11... Bc4 {[%clk 0:02:29.3]} 12. Ng3 {[%clk 0:02:14]} 12... Qb6
{[%clk 0:02:18.5]} 13. Bxc4 {[%clk 0:02:05.2]} 13... Rxc4 {[%clk 0:02:15.7]} 14.
Rb1 {[%clk 0:01:57.6]} 14... d5 {[%clk 0:01:48.8]} 15. Bxf6 {[%clk 0:01:39.4]}
15... Nxf6 {[%clk 0:01:48.5]} 16. Nxd5 {[%clk 0:01:38.3]} 16... Nxd5 {[%clk
0:01:46.2]} 17. Qxd5 {[%clk 0:01:32.3]} 17... Qe3+ {[%clk 0:01:30.1]} 18. Ne2
{[%clk 0:01:31.5]} 18... Rxc2 {[%clk 0:01:24.9]} 19. Qxe5+ {[%clk 0:01:31.3]}
19... Be7 {[%clk 0:01:11.8]} 20. Qb8+ {[%clk 0:01:31.1]} 20... Bd8 {[%clk
0:00:57.8]} 21. Qe5+ {[%clk 0:01:31.1]} 21... Kd7 {[%clk 0:00:40.5]} 22. Qd4+
{[%clk 0:01:06.9]} 22... Qxd4 {[%clk 0:00:40.1]} 23. Nxd4 {[%clk 0:01:07.8]}
23... Rxg2 {[%clk 0:00:39.6]} 24. Kf1 {[%clk 0:01:06.4]} 24... Rd2 {[%clk
0:00:33.9]} 25. Nf3 {[%clk 0:01:06]} 25... Rc2 {[%clk 0:00:33.6]} 26. Nd4 {[%clk
0:01:04.3]} 26... Rc4 {[%clk 0:00:30.8]} 27. Rd1 {[%clk 0:01:03.5]} 27... Kc8
{[%clk 0:00:27.3]} 28. Rh2 {[%clk 0:01:00.5]} 28... Bf6 {[%clk 0:00:24.2]} 29.
Nc2 {[%clk 0:00:49.4]} 29... Rxe4 {[%clk 0:00:22.2]} 30. b3 {[%clk 0:00:45.5]}
30... Rd8 {[%clk 0:00:18.9]} 31. Rxd8+ {[%clk 0:00:44]} 31... Kxd8 {[%clk
0:00:19.8]} 32. Rd2+ {[%clk 0:00:44.4]} 32... Kc7 {[%clk 0:00:19.9]} 33. Kg2
{[%clk 0:00:44.5]} 33... Re5 {[%clk 0:00:17]} 34. Nd4 {[%clk 0:00:42]} 34... Rd5
{[%clk 0:00:16.6]} 35. Rc2+ {[%clk 0:00:41.6]} 35... Kd7 {[%clk 0:00:16.6]} 36.
Nf3 {[%clk 0:00:32.2]} 36... Rxf5 {[%clk 0:00:16.8]} 37. Kf2 {[%clk 0:00:33.1]}
37... Rd5 {[%clk 0:00:16]} 38. Ke3 {[%clk 0:00:33.2]} 38... Be7 {[%clk
0:00:15.7]} 39. Ke4 {[%clk 0:00:33]} 39... Rh5 {[%clk 0:00:14.1]} 40. Ne5+
{[%clk 0:00:33]} 40... Ke6 {[%clk 0:00:14.1]} 41. Nd3 {[%clk 0:00:30.3]} 41...
f5+ {[%clk 0:00:13.7]} 42. Kd4 {[%clk 0:00:23.2]} 42... Rh4+ {[%clk 0:00:13.9]}
43. Kc3 {[%clk 0:00:20.2]} 43... Rxh3 {[%clk 0:00:13.9]} 44. Re2+ {[%clk
0:00:20.4]} 44... Kd7 {[%clk 0:00:13.7]} 45. Kc4 {[%clk 0:00:21.3]} 45... Bd6
{[%clk 0:00:12]} 46. Rd2 {[%clk 0:00:17]} 46... Kc6 {[%clk 0:00:11]} 47. a4
{[%clk 0:00:08.6]} 47... Rh4+ {[%clk 0:00:10.7]} 48. Kc3 {[%clk 0:00:08.5]}
48... g5 {[%clk 0:00:11.4]} 49. Re2 {[%clk 0:00:08.3]} 49... Re4 {[%clk
0:00:11.1]} 50. Rf2 {[%clk 0:00:06.9]} 50... f4 {[%clk 0:00:11.1]} 51. Rh2
{[%clk 0:00:07.4]} 51... Re6 {[%clk 0:00:10.6]} 52. Nf2 {[%clk 0:00:07.2]} 52...
f3 {[%clk 0:00:10.5]} 53. Rh3 {[%clk 0:00:07.2]} 53... Bc5 {[%clk 0:00:08.3]}
54. Rxf3 {[%clk 0:00:04.8]} 54... Bxf2 {[%clk 0:00:08.3]} 55. Rxf2 {[%clk
0:00:05.7]} 55... g4 {[%clk 0:00:08.9]} 56. Rf7 {[%clk 0:00:04.8]} 56... Rg6
{[%clk 0:00:08.5]} 57. Rf2 {[%clk 0:00:03.1]} 57... g3 {[%clk 0:00:08.7]} 58.
Rg2 {[%clk 0:00:04]} 58... h5 {[%clk 0:00:09.3]} 59. Kd4 {[%clk 0:00:04.9]}
59... h4 {[%clk 0:00:09.7]} 60. Ke3 {[%clk 0:00:05.8]} 60... h3 {[%clk
0:00:10.1]} 61. Kf3 {[%clk 0:00:06.7]} 61... hxg2 {[%clk 0:00:10.1]} 62. Kxg2
{[%clk 0:00:07.6]} 62... Kc5 {[%clk 0:00:10]} 0-1